bitfinex/quotes_ETHUSD_20250413
["timestamp","ask_amount","ask_price","bid_price","bid_amount"]
[1744539963834,6.18447,1617.0,1616.6,6.25306]
[1744539964065,0.76,1617.2,1616.8,12.36975]
[1744539964066,6.94366,1617.2,1616.8,12.36975]
[1744539964357,6.94366,1617.2,1616.9,7.421645]
[1744539964544,6.18319,1617.3,1617.0,0.7565]
[1744539964738,13.1258,1617.4,1617.0,6.94057]
[1744539965061,13.12583,1617.4,1617.0,6.94057]
[1744539965256,6.18317,1617.3,1617.0,6.94057]
[1744539965466,6.18317,1617.3,1616.9,7.421595]
[1744539965467,6.18353,1617.2,1616.9,8.178095]
[1744539965763,6.18317,1617.3,1617.0,0.8178095]
[1744539966280,6.9428,1617.4,1617.0,7.0020595]
[1744539966474,6.94244,1617.5,1617.1,6.18354]
[1744539966674,6.18291,1617.4,1617.1,0.7565]
[1744539966875,12.36602,1617.4,1617.1,0.7565]
[1744539967179,6.18316,1617.3,1617.0,7.0020395]
[1744539967483,6.18316,1617.3,1617.0,1.6062095]
[1744539967665,0.476792,1617.2,1617.0,0.8178095]
[1744539968082,0.476792,1617.2,1617.0,7.0019195]
[1744539968270,0.476792,1617.2,1617.1,7.67249195]
[1744539968444,6.18243,1617.5,1617.1,7.67249195]
[1744539968644,6.660312,1617.2,1616.9,6.97294]
[1744539968849,6.18352,1617.2,1616.9,6.97294]
[1744539969174,6.18352,1617.2,1616.9,13.15742]
[1744539969175,0.47771351,1617.1,1616.9,13.15742]
[1744539969359,6.18352,1617.2,1616.9,13.15742]
[1744539969565,0.47771351,1617.1,1616.9,13.15742]
[1744539969799,6.18352,1617.2,1617.0,1.315742]
[1744539970396,6.95357,1617.3,1617.0,1.315742]
[1744539970553,6.95357,1617.3,1617.0,7.499862]
[1744539971292,6.18455,1617.0,1616.6,7.04145]
[1744539972253,6.95424,1617.1,1616.7,6.18514]
[1744539972572,6.1836,1617.2,1616.8,6.93992]
[1744539972777,12.36732,1617.2,1616.9,6.18464]
[1744539972975,6.18437,1617.0,1616.8,0.755]
[1744539973194,6.18467,1616.9,1616.6,13.1938]
[1744539973392,12.36954,1616.9,1616.6,8.32748]
[1744539973578,6.18467,1616.9,1616.6,8.32748]
[1744539973781,13.16329,1617.0,1616.6,8.32742]
[1744539974092,6.18472,1616.9,1616.6,8.32742]
[1744539975383,0.7944,1617.0,1616.6,2.14178]
[1744539975697,6.18524,1616.8,1616.6,0.0674]
[1744539976201,6.18472,1616.9,1616.6,0.0674]
[1744539977483,12.36958,1616.9,1616.6,0.0674]
[1744539978088,6.97871,1617.0,1616.7,6.18543]
[1744539978404,6.18398,1617.1,1616.7,6.95271]
[1744539978608,6.18398,1617.1,1616.8,6.880191]
[1744539980810,6.18398,1617.1,1616.8,6.880161]
[1744539981014,6.18398,1617.1,1616.8,13.065101]
[1744539981215,13.16095,1617.3,1616.9,6.95205]
[1744539981519,0.7945,1617.4,1616.9,6.95191]
[1744539981706,6.18385,1617.2,1616.9,0.7674]
[1744539982025,12.36775,1617.2,1616.9,0.7674]
[1744539982618,7.47793246,1617.1,1616.8,6.773271]
[1744539982782,13.66217246,1617.1,1616.8,6.773271]
[1744539982982,0.47255246,1617.1,1616.8,19.143171]
[1744539983309,0.47255246,1617.0,1616.9,1.9143171]
[1744539983609,12.36728,1617.2,1616.9,1.9143171]
[1744539983810,0.47255246,1617.1,1616.9,1.9143171]
[1744539984025,6.65646246,1617.1,1616.9,1.9143171]
[1744539984205,6.18391,1617.1,1616.9,1.9143171]
[1744539984409,0.47255246,1617.0,1616.9,1.9143171]
[1744539984785,12.36737,1617.2,1616.9,1.9143171]
[1744539985086,0.47255246,1617.1,1616.9,1.9143171]
[1744539985305,12.36745,1617.2,1616.9,1.9143171]
[1744539985507,0.47255246,1617.1,1616.9,1.9143171]
[1744539985817,12.36745,1617.2,1616.9,1.9143171]
[1744539986023,0.47255246,1617.0,1616.9,1.9143171]
[1744539986193,12.36745,1617.2,1616.9,1.9143171]
[1744539986394,0.47255246,1617.1,1616.9,1.9143171]
[1744539986609,12.36745,1617.2,1616.9,1.9143171]
[1744539986780,0.47255246,1617.1,1616.9,1.9143171]
[1744539986974,6.18356,1617.2,1616.9,1.9143171]
[1744539987175,0.47255246,1617.1,1616.9,1.9143171]
[1744539987408,12.36739,1617.2,1616.9,1.9143171]
[1744539987584,0.47347429,1617.1,1616.9,1.9143171]
[1744539987784,12.36739,1617.2,1616.9,1.9143171]
[1744539987992,0.47347429,1617.1,1616.9,1.9143171]
[1744539988215,12.36739,1617.2,1616.9,1.9143171]
[1744539988411,0.47347429,1617.1,1616.9,1.9143171]
[1744539988623,6.18356,1617.2,1616.9,8.0989671]
[1744539988829,0.47347429,1617.0,1616.9,8.0989671]
[1744539989034,6.18356,1617.2,1616.9,8.0989671]
[1744539989514,0.47347429,1617.1,1616.9,8.0989671]
[1744539989723,0.8214,1617.3,1616.9,1.9143171]
[1744539990026,0.8214,1617.3,1616.8,12.958151]
[1744539990027,0.47347429,1617.2,1616.8,12.958151]
[1744539990236,6.18405,1617.1,1616.8,12.958151]
[1744539990418,6.18405,1617.1,1616.8,19.143091]
[1744539990828,0.47347429,1617.0,1616.8,19.143091]
[1744539991323,12.36721,1617.2,1616.8,19.143091]
[1744539991630,0.47347429,1617.1,1617.0,6.18429]
[1744539991808,0.47347429,1617.1,1616.9,15.1144891]
[1744539991995,13.1879,1617.3,1616.9,15.1144891]
[1744539992195,0.47347429,1617.0,1616.9,8.9298591]
[1744539992391,6.18352,1617.2,1616.9,8.9298591]
[1744539992595,0.47347429,1617.1,1616.9,15.1143791]
[1744539992829,6.18352,1617.2,1617.0,1.51143791]
[1744539993016,6.18352,1617.2,1616.9,15.1143791]
[1744539993017,0.47347429,1617.0,1616.9,15.1143791]
[1744539993333,0.47347429,1617.0,1616.9,8.9298291]
[1744539993533,12.36732,1617.2,1616.9,8.9298291]
[1744539993832,0.47347429,1617.1,1616.9,7.01552]
[1744539994195,6.18352,1617.2,1616.9,7.01552]
[1744539994415,0.47347429,1617.1,1616.9,7.01552]
[1744539994622,6.18352,1617.2,1616.9,7.01552]
[1744539994820,0.47347429,1617.0,1616.9,7.01552]
[1744539995020,6.18352,1617.2,1616.9,9.0128961]
[1744539995198,0.47347429,1617.0,1616.9,7.01552]
[1744539995394,6.18352,1617.2,1616.9,7.01552]
[1744539995633,0.47347429,1617.1,1616.9,13.20009]
[1744539996034,6.18352,1617.2,1616.9,13.20009]
[1744539996240,0.47347429,1617.0,1616.9,13.20009]
[1744539996405,6.18352,1617.2,1616.9,15.1974261]
[1744539996602,0.47347429,1617.1,1616.9,9.0128561]
[1744539996808,13.18797,1617.3,1616.9,15.1973861]
[1744539997009,0.47347429,1617.2,1616.9,15.1973861]
[1744539997950,0.47347429,1617.2,1617.0,6.18416]
[1744539999910,6.18355,1617.2,1616.9,7.01557]
[1744540000108,0.47328995,1617.1,1616.9,13.20008]
[1744540000407,12.36645,1617.3,1616.9,13.20008]
[1744540000705,0.47338212,1617.2,1616.9,13.20008]
[1744540000902,0.47338212,1617.2,1616.9,15.1974151]
[1744540001345,0.47338212,1617.2,1617.0,6.18427]
[1744540003037,0.47338212,1617.2,1616.9,15.1973651]
[1744540003739,0.47338212,1617.2,1617.0,6.18425]
[1744540004060,13.12267,1617.4,1617.0,12.36839]
[1744540004261,0.47356646,1617.1,1617.0,12.36839]
[1744540004461,13.12267,1617.4,1617.0,13.88806251]
[1744540004665,0.47356646,1617.1,1617.0,13.88806251]
[1744540004874,13.12267,1617.4,1617.0,13.88806251]
[1744540005067,0.47356646,1617.1,1617.0,13.88806251]
[1744540005232,13.12267,1617.4,1617.0,13.88806251]
[1744540005731,0.47356646,1617.3,1617.0,13.88806251]
[1744540005930,13.12267,1617.4,1617.1,1.38880625]
[1744540006150,0.47356646,1617.3,1617.0,12.36839]
[1744540006355,13.12267,1617.4,1617.0,12.36839]
[1744540006558,0.47356646,1617.3,1617.0,12.36839]
[1744540006725,13.12267,1617.4,1617.0,12.36839]
[1744540006930,0.47356646,1617.3,1617.0,12.36839]
[1744540007133,6.18314,1617.3,1617.0,1.51967251]
[1744540007333,6.185,1616.9,1616.7,0.7876]
[1744540007563,0.47522543,1616.8,1616.6,6.25315]
[1744540007769,0.47522543,1616.8,1616.6,12.4389]
[1744540007960,6.66028543,1616.8,1616.6,0.0674]
[1744540008334,0.47522543,1616.8,1616.6,0.0674]
[1744540009235,6.66039543,1616.8,1616.6,0.0674]
[1744540009477,6.18543,1616.7,1616.6,0.0674]
[1744540009648,12.84581543,1616.8,1616.6,0.0674]
[1744540009836,0.47181477,1616.7,1616.6,0.0674]
[1744540010347,13.16394,1616.9,1616.6,0.0674]
[1744540010530,0.47181477,1616.8,1616.6,0.855]
[1744540010732,0.47181477,1616.8,1616.6,2.177717]
[1744540011440,0.47181477,1616.8,1616.6,8.363507]
[1744540011640,0.47181477,1616.8,1616.6,14.549207]
[1744540012036,6.18435,1617.0,1616.6,14.549207]
[1744540012263,0.47107712,1616.7,1616.6,14.549207]
[1744540012471,12.3688,1617.0,1616.6,8.363417]
[1744540012635,6.1847,1616.9,1616.6,8.363417]
[1744540012838,0.47107712,1616.8,1616.6,8.363417]
[1744540013265,0.47107712,1616.8,1616.6,8.363397]
[1744540013671,6.18429,1617.0,1616.6,8.363397]
[1744540013850,0.47107712,1616.7,1616.6,8.363397]
[1744540014054,13.19579,1617.0,1616.6,8.363397]
[1744540014241,0.47107712,1616.7,1616.6,8.363397]
[1744540014442,13.19579,1617.0,1616.6,8.363397]
[1744540014640,0.47107712,1616.7,1616.6,8.363397]
[1744540014842,13.19579,1617.0,1616.6,8.363397]
[1744540015073,13.19579,1617.0,1616.7,0.8363397]
[1744540015339,6.18494,1616.9,1616.6,2.177717]
[1744540015539,12.3698,1616.9,1616.6,0.855]
[1744540015740,6.18486,1616.9,1616.6,0.855]
[1744540016071,7.01126,1617.0,1616.6,7.04063]
[1744540016241,12.3681,1617.1,1616.7,6.18529]
[1744540016439,6.18394,1617.1,1616.8,6.18498]
[1744540016634,6.18394,1617.1,1616.9,0.7558]
[1744540016877,12.36803,1617.1,1616.7,13.877229]
[1744540017066,6.18467,1616.9,1616.7,1.506529]
[1744540018383,6.18396,1617.1,1616.7,6.98765]
[1744540018886,12.36814,1617.1,1616.8,6.185]
[1744540019376,6.18396,1617.1,1616.8,6.185]
[1744540019678,12.36812,1617.1,1616.8,6.185]
[1744540020666,6.18439,1617.0,1616.7,13.17293]
[1744540020884,6.18439,1617.0,1616.8,1.317293]
[1744540021604,6.18439,1617.0,1616.7,0.8025]
[1744540021800,12.3697,1616.9,1616.6,6.1324]
[1744540022002,7.00043,1616.7,1616.6,6.1324]
[1744540022300,8.318979,1616.7,1616.6,0.0674]
[1744540022500,7.00043,1616.7,1616.6,0.0674]
[1744540026614,6.52461984,1617.1,1616.6,7.08085]
[1744540026615,6.9998,1616.9,1616.6,7.08085]
[1744540026767,6.18431,1617.0,1616.7,6.18529]
[1744540026975,6.8677,1617.1,1616.7,6.18529]
[1744540027168,6.065,1617.1,1616.6,0.0674]
[1744540027417,6.18516,1616.8,1616.6,0.0674]
[1744540027625,0.46904925,1616.7,1616.6,0.0674]
[1744540029895,7.45717925,1616.7,1616.6,0.0674]
[1744540030313,0.46904925,1616.7,1616.6,0.0674]
[1744540032405,13.17228,1616.9,1616.6,0.0674]
[1744540032606,0.467021,1616.8,1616.6,0.0674]
[1744540035240,6.652131,1616.8,1616.6,0.0674]
[1744540035536,6.96923,1616.7,1616.6,0.0674]
[1744540036042,7.436251,1616.7,1616.6,0.0674]
[1744540038940,7.418051,1616.7,1616.6,0.0674]
[1744540039148,9.3968901,1616.7,1616.6,0.0674]
[1744540039506,16.0128901,1616.7,1616.6,0.0674]
[1744540039848,19.0128901,1616.7,1616.6,0.0674]
[1744540044547,18.4628901,1616.7,1616.6,0.0674]
[1744540046040,19.0128901,1616.7,1616.6,0.0674]
[1744540048452,25.5188901,1616.7,1616.6,0.0674]
[1744540051255,19.0128901,1616.7,1616.6,0.0674]
[1744540053463,18.4638901,1616.7,1616.6,0.0674]
[1744540053625,16.485051,1616.7,1616.6,0.0674]
[1744540053825,10.418051,1616.7,1616.6,0.0674]
[1744540054032,6.652451,1616.7,1616.6,0.0674]
[1744540054229,6.652451,1616.7,1616.6,0.8733]
[1744540054865,0.467021,1616.7,1616.6,0.8733]
[1744540056366,0.467021,1616.7,1616.6,1.579249]
[1744540056739,18.43657,1616.9,1616.6,1.579249]
[1744540057068,0.45724356,1616.8,1616.6,1.579249]
[1744540057264,0.45724356,1616.8,1616.6,7.765059]
[1744540057685,0.45724356,1616.8,1616.6,1.579249]
[1744540058070,6.64236356,1616.8,1616.6,1.579249]
[1744540058381,6.64236356,1616.8,1616.6,0.8733]
[1744540060794,6.18543,1616.7,1616.6,0.8733]
[1744540061019,6.6492233,1616.7,1616.6,0.8733]
[1744540061617,6.6492233,1616.7,1616.6,0.0674]
[1744540062172,0.4637933,1616.7,1616.6,0.0674]
[1744540062619,0.4637933,1616.7,1616.6,0.8543]
[1744540067338,6.18413,1617.1,1616.8,6.18495]
[1744540067708,6.1836,1617.2,1616.9,0.7869]
[1744540067894,12.36649,1617.3,1616.9,13.15596]
[1744540068237,6.18322,1617.3,1616.9,13.15596]
[1744540068938,6.18358,1617.2,1616.9,6.97143]
[1744540069140,6.18394,1617.1,1616.9,0.7869]
[1744540069935,6.1839,1617.2,1616.9,6.97132]
[1744540070291,6.18322,1617.3,1616.9,13.15585]
[1744540070292,12.36651,1617.3,1616.9,13.15585]
[1744540070492,6.18322,1617.3,1616.9,13.15585]
[1744540071135,6.18285,1617.4,1617.1,0.7595]
[1744540071303,6.18287,1617.4,1617.1,6.9431]
[1744540072698,0.46923313,1617.3,1617.1,6.9431]
[1744540072900,0.46923313,1617.3,1617.1,7.92294846]
[1744540073099,6.18287,1617.4,1617.1,7.92294846]
[1744540073299,0.46923313,1617.2,1617.1,7.92294846]
[1744540073502,6.18287,1617.4,1617.1,7.92294846]
[1744540074138,0.46923313,1617.3,1617.1,7.92294846]
[1744540074635,0.46923313,1617.2,1617.1,14.10668846]
[1744540075025,6.18245,1617.5,1617.3,0.7753]
[1744540075905,6.18204,1617.6,1617.3,6.95842]
[1744540076138,6.18204,1617.6,1617.3,8.272592]
[1744540076296,12.36421,1617.6,1617.3,2.089472]
[1744540076501,56.8523,1617.8,1617.3,2.089472]
[1744540076502,6.18263,1617.5,1617.3,0.7753]
[1744540076913,12.36526,1617.5,1617.3,0.7753]
[1744540077127,6.18263,1617.5,1617.3,0.7753]
[1744540077525,12.3652,1617.5,1617.3,0.7753]
[1744540080363,6.18346,1617.3,1617.1,0.7973]
[1744540081141,6.18352,1617.2,1617.1,0.7973]
[1744540081352,6.18346,1617.3,1617.1,0.7973]
[1744540081754,12.36677,1617.3,1617.1,0.7973]
[1744540082229,6.18331,1617.3,1617.1,0.7973]
[1744540082466,6.18376,1617.2,1616.9,6.8544]
[1744540082784,6.18393,1617.1,1616.9,6.8544]
[1744540083082,7.01445,1617.2,1616.7,0.7894]
[1744540083083,0.8309,1617.2,1616.7,0.7894]
[1744540083271,6.18494,1616.9,1616.6,6.9188]
[1744540083569,6.18456,1617.0,1616.6,13.10449]
[1744540083726,12.36915,1617.0,1616.7,1.310449]
[1744540084460,6.18404,1617.1,1616.8,0.7894]
[1744540084669,6.18449,1617.0,1616.8,0.7894]
[1744540084847,6.18404,1617.1,1616.8,0.7894]
[1744540085170,12.36815,1617.1,1616.8,0.7894]
[1744540085373,6.18404,1617.1,1616.8,0.7894]
[1744540085529,6.18404,1617.1,1616.8,7.8028919]
[1744540087740,0.47236801,1617.0,1616.8,1.6179019]
[1744540087954,0.47236801,1617.0,1616.8,7.8029419]
[1744540088855,0.47236801,1617.0,1616.8,1.6179019]
[1744540089043,6.65681801,1617.0,1616.8,0.7894]
[1744540089253,1.24396801,1617.0,1616.6,6.9269]
[1744540089459,6.1851,1616.8,1616.6,6.9269]
[1744540089746,0.47255239,1616.7,1616.6,6.9269]
[1744540090463,6.18492,1616.9,1616.6,6.9269]
[1744540090664,0.47255239,1616.8,1616.6,6.9269]
[1744540090966,0.47255239,1616.8,1616.6,8.82176179]
[1744540091256,0.47255239,1616.8,1616.6,15.00744179]
[1744540091491,6.18437,1617.0,1616.6,15.00744179]
[1744540091697,0.47116942,1616.9,1616.6,15.00744179]
[1744540092556,0.47116942,1616.9,1616.7,6.18543]
[1744540092884,12.37028,1616.8,1616.6,0.0674]
[1744540093074,6.18505,1616.8,1616.6,0.0674]
[1744540093274,0.47116942,1616.7,1616.6,0.8369]
[1744540094153,0.47116942,1616.7,1616.6,0.0674]
[1744540097350,7.47929942,1616.7,1616.6,0.0674]
[1744540097655,8.84573436,1616.7,1616.6,0.0674]
[1744540099598,9.31111376,1616.7,1616.6,0.0674]
[1744540100493,9.86111376,1616.7,1616.6,0.0674]
[1744540101396,15.92511376,1616.7,1616.6,0.0674]
[1744540101597,6.18811,1616.0,1615.9,7.011396]
[1744540101800,6.18811,1616.0,1615.9,0.948396]
[1744540102000,6.65051924,1616.0,1615.9,0.948396]
[1744540102507,0.46240924,1616.0,1615.9,0.948396]
[1744540103610,6.18811,1616.0,1615.9,0.948396]
[1744540103780,6.65051924,1616.0,1615.9,0.948396]
[1744540104331,6.65051924,1616.0,1615.9,0.398396]
[1744540105230,7.93435016,1616.0,1615.9,0.398396]
[1744540106384,6.19096,1615.3,1615.1,0.02]
[1744540106724,0.45106018,1615.2,1615.1,0.02]
[1744540106926,6.19043,1615.4,1615.1,0.02]
[1744540107137,0.44755159,1615.3,1615.1,0.02]
[1744540107437,6.19107,1615.3,1615.1,0.02]
[1744540107596,0.44755159,1615.2,1615.1,0.02]
[1744540108427,6.63873159,1615.2,1615.1,0.02]
[1744540109286,8.70000875,1615.2,1615.1,0.02]
[1744540109487,11.70000875,1615.2,1615.1,0.02]
[1744540110445,18.31500875,1615.2,1615.1,0.02]
[1744540110604,24.42500875,1615.2,1615.1,0.02]
[1744540111928,24.42500875,1615.2,1615.1,1e-05]
[1744540112293,6.19419,1614.5,1614.3,6.97693468]
[1744540112489,6.63903049,1614.4,1614.3,6.97693468]
[1744540113712,6.63903049,1614.4,1614.3,0.398396]
[1744540114091,10.97453049,1614.4,1614.3,0.398396]
[1744540114416,11.43532269,1614.4,1614.3,0.398396]
[1744540114786,10.42453049,1614.4,1614.3,0.398396]
[1744540115121,6.63903049,1614.4,1614.3,0.398396]
[1744540115293,0.44478049,1614.4,1614.3,0.398396]
[1744540115920,6.19381,1614.6,1614.3,0.398396]
[1744540116126,0.38440971,1614.5,1614.3,0.398396]
[1744540116397,6.19425,1614.4,1614.3,0.398396]
[1744540116630,0.38440971,1614.5,1614.3,0.398396]
[1744540116833,6.19313,1614.7,1614.3,0.398396]
[1744540117006,7.40575971,1614.4,1614.3,0.398396]
[1744540117209,7.02135,1614.4,1614.3,0.398396]
[1744540117404,9.34670071,1614.4,1614.3,0.398396]
[1744540117610,0.38440971,1614.4,1614.3,0.398396]
[1744540119138,12.38721,1614.6,1614.3,0.148396]
[1744540119342,0.38440971,1614.5,1614.3,0.148396]
[1744540120367,0.38440971,1614.5,1614.3,6.342896]
[1744540120545,0.38440971,1614.5,1614.4,6.98485]
[1744540120711,6.19276,1614.8,1614.4,13.17893]
[1744540120916,0.38440971,1614.7,1614.4,8.3174426]
[1744540121105,0.38440971,1614.7,1614.4,6.98471]
[1744540121436,6.57764971,1614.7,1614.4,6.98471]
[1744540121638,0.38440971,1614.7,1614.4,6.98467]
[1744540123038,0.38440971,1614.7,1614.4,13.17875]
[1744540123206,6.57776971,1614.7,1614.4,0.7906]
[1744540123542,6.57776971,1614.7,1614.4,6.98481]
[1744540123736,6.57775971,1614.7,1614.4,0.7906]
[1744540124249,6.19362,1614.6,1614.3,0.148396]
[1744540124549,6.19389,1614.5,1614.3,0.148396]
[1744540124755,6.19425,1614.4,1614.3,0.148396]
[1744540125121,6.19389,1614.5,1614.3,0.148396]
[1744540125319,6.58551953,1614.4,1614.3,0.148396]
[1744540127627,0.39126953,1614.4,1614.3,0.148396]
[1744540127835,0.39126953,1614.4,1614.3,0.921196]
[1744540128218,6.19398,1614.5,1614.3,0.921196]
[1744540128529,0.39126953,1614.4,1614.3,0.921196]
[1744540128727,0.39126953,1614.4,1614.3,7.115826]
[1744540128930,6.19317,1614.7,1614.3,14.6415286]
[1744540129225,0.39126953,1614.6,1614.3,7.115826]
[1744540129427,0.39126953,1614.6,1614.3,13.310276]
[1744540129742,0.39126953,1614.5,1614.3,13.310276]
[1744540129941,12.38646,1614.7,1614.3,7.115646]
[1744540130166,6.58474953,1614.6,1614.3,7.115646]
[1744540130720,12.77841953,1614.6,1614.3,0.921196]
[1744540131362,6.58474953,1614.6,1614.3,0.921196]
[1744540131717,6.58474953,1614.6,1614.3,7.115806]
[1744540132458,12.77842953,1614.6,1614.3,7.115806]
[1744540132645,12.77842953,1614.6,1614.3,0.921196]
[1744540132864,6.58474953,1614.6,1614.3,0.921196]
[1744540133027,6.58474953,1614.6,1614.3,7.115666]
[1744540134453,6.58474953,1614.6,1614.3,13.310186]
[1744540134653,0.39126953,1614.6,1614.3,13.310186]
[1744540135051,6.19315,1614.7,1614.4,6.19423]
[1744540135223,0.39126953,1614.5,1614.3,13.310186]
[1744540135426,12.38642,1614.7,1614.3,14.6412046]
[1744540135623,0.39126953,1614.4,1614.3,14.6412046]
[1744540135861,12.38642,1614.7,1614.3,14.6412046]
[1744540136062,0.39126953,1614.4,1614.3,14.6412046]
[1744540136367,6.19313,1614.7,1614.4,6.19402]
[1744540136672,6.19313,1614.7,1614.3,0.148396]
[1744540136673,6.19425,1614.4,1614.3,0.148396]
[1744540139075,6.19404,1614.5,1614.3,0.148396]
[1744540139289,7.01633,1614.6,1614.3,0.148396]
[1744540139487,6.19425,1614.4,1614.3,0.148396]
[1744540139691,6.19403,1614.5,1614.3,0.148396]
[1744540139848,0.619403,1614.4,1614.3,0.148396]
[1744540140280,7.01629,1614.6,1614.3,0.148396]
[1744540140988,0.8228,1614.6,1614.3,0.148396]
[1744540141290,6.98503,1614.8,1614.4,6.19407]
[1744540141446,6.98503,1614.8,1614.5,6.96744]
[1744540141847,9.19241,1614.9,1614.5,6.96728]
[1744540142189,6.97782,1615.0,1614.5,1.470328]
[1744540142489,6.19234,1614.9,1614.6,6.19348]
[1744540143588,13.16998,1615.0,1614.6,6.19329]
[1744540143945,6.19244,1614.9,1614.6,6.19329]
[1744540144789,6.97782,1615.0,1614.6,12.38664]
[1744540145150,6.97782,1615.0,1614.6,6.19329]
[1744540145481,9.67805162,1615.1,1614.7,6.1929]
[1744540145482,12.39657,1615.1,1614.7,6.1929]
[1744540145688,12.39657,1615.1,1614.8,6.19267]
[1744540145890,14.45140716,1615.2,1614.8,6.95715]
[1744540146054,6.19157,1615.1,1614.8,6.95715]
[1744540146897,1.44515972,1615.1,1614.6,7.0154]
[1744540147070,6.19234,1614.9,1614.6,7.0154]
[1744540147389,6.95834,1614.9,1614.6,7.0154]
[1744540147595,0.39062023,1614.8,1614.6,7.0154]
[1744540147946,6.95834,1614.9,1614.6,7.0154]
[1744540148154,0.39062023,1614.8,1614.6,13.20873]
[1744540148368,0.766,1614.9,1614.6,13.20866]
[1744540148551,0.39062023,1614.8,1614.6,13.20866]
[1744540148751,0.766,1614.9,1614.6,13.20866]
[1744540148965,0.39062023,1614.8,1614.6,13.20866]
[1744540149189,0.766,1614.9,1614.6,13.20866]
[1744540149397,6.58358023,1614.8,1614.3,0.970396]
[1744540149551,6.19322,1614.7,1614.3,13.359236]
[1744540149753,6.19316,1614.7,1614.3,7.164856]
[1744540150066,7.35024023,1614.6,1614.3,7.164856]
[1744540150261,14.89829025,1614.6,1614.3,0.970396]
[1744540150479,6.19388,1614.5,1614.3,0.148396]
[1744540150880,0.39256692,1614.4,1614.3,0.148396]
[1744540151560,6.58681692,1614.4,1614.3,0.148396]
[1744540154310,0.39256692,1614.4,1614.3,0.148396]
[1744540154616,0.39256692,1614.4,1614.3,7.110626]
[1744540155108,6.97522,1614.8,1614.5,6.19371]
[1744540155273,6.19333,1614.7,1614.3,13.305006]
[1744540155472,6.19333,1614.7,1614.4,6.19411]
[1744540156113,12.38667,1614.7,1614.3,7.110556]
[1744540156277,13.16808,1614.8,1614.4,12.3882]
[1744540156620,14.6163902,1614.8,1614.4,12.3882]
[1744540156906,12.38658,1614.7,1614.3,7.110556]
[1744540157113,12.38658,1614.7,1614.3,13.304956]
[1744540157308,6.19314,1614.7,1614.3,7.110466]
[1744540157611,6.19354,1614.6,1614.3,7.110466]
[1744540157805,1.238668,1614.6,1614.3,13.304966]
[1744540158016,6.19314,1614.7,1614.4,6.19413]
[1744540158718,6.19314,1614.7,1614.3,13.305196]
[1744540159012,6.19314,1614.7,1614.3,7.110446]
[1744540159214,6.19314,1614.7,1614.4,6.19418]
[1744540159417,6.1936,1614.6,1614.3,0.148396]
[1744540159615,2.2308102,1614.8,1614.3,0.148396]
[1744540159616,6.9765,1614.5,1614.3,0.148396]
[1744540161118,0.7825,1614.5,1614.3,0.148396]
[1744540161292,6.97653,1614.5,1614.3,0.148396]
[1744540161476,13.17068,1614.5,1614.3,0.148396]
[1744540161688,6.19425,1614.4,1614.3,0.148396]
[1744540162305,8.293598,1614.5,1614.3,0.148396]
[1744540162818,0.38950847,1614.4,1614.3,7.163926]
[1744540163195,14.03110302,1614.7,1614.3,13.358426]
[1744540163525,6.99625,1614.4,1614.3,0.148396]
[1744540163694,6.19404,1614.5,1614.3,0.148396]
[1744540163898,0.38950847,1614.4,1614.3,0.148396]
[1744540164212,3.0,1614.6,1614.4,7.015]
[1744540164608,3.0,1614.6,1614.4,0.8209]
[1744540164813,10.1970763,1614.6,1614.3,0.969296]
[1744540165008,16.3907463,1614.6,1614.3,0.969296]
[1744540165226,10.1970763,1614.6,1614.3,0.969296]
[1744540165447,10.1970763,1614.6,1614.3,7.163926]
[1744540165728,1.0035463,1614.6,1614.3,13.358436]
[1744540166023,0.84235302,1614.7,1614.4,6.1942]
[1744540166232,9.9948,1614.8,1614.4,12.3884]
[1744540168200,16.18778,1614.8,1614.4,12.3884]
[1744540168512,6.19336,1614.7,1614.3,7.163876]
[1744540168712,6.19336,1614.7,1614.3,13.358456]
[1744540169016,9.99479,1614.8,1614.4,12.38833]
[1744540169633,16.18777,1614.8,1614.4,12.38833]
[1744540169943,12.38642,1614.7,1614.4,6.19411]
[1744540171112,6.19312,1614.7,1614.4,6.19411]
[1744540171530,9.99479,1614.8,1614.4,12.38818]
[1744540171824,11.61351,1614.8,1614.4,12.38818]
[1744540172444,11.61351,1614.8,1614.5,6.19376]
[1744540172810,6.19241,1614.9,1614.6,6.19329]
[1744540172811,0.7746,1614.9,1614.6,6.19329]
[1744540173016,3.7746,1615.0,1614.7,6.19294]
[1744540173348,13.15716,1615.2,1614.8,13.14518]
[1744540174043,6.96583,1615.2,1614.8,13.14518]
[1744540174740,3.7746,1615.2,1614.8,0.7601]
[1744540174946,6.1921,1615.0,1614.6,13.14698]
[1744540175143,6.1921,1615.0,1614.7,6.19306]
[1744540175508,6.56905,1615.1,1614.7,6.19298]
[1744540175710,6.56905,1615.1,1614.8,6.19259]
[1744540176343,6.56905,1615.1,1614.7,6.19298]
[1744540176524,6.19204,1615.0,1614.7,6.19298]
[1744540176730,0.7746,1614.8,1614.3,0.148396]
[1744540176930,6.1931,1614.7,1614.3,12.537446]
[1744540177352,6.19361,1614.6,1614.3,6.342866]
[1744540177555,0.38941585,1614.5,1614.3,6.342866]
[1744540178049,0.38941585,1614.5,1614.4,6.95175]
[1744540178257,0.7802,1614.6,1614.3,6.342866]
[1744540178426,0.38941585,1614.5,1614.3,6.342866]
[1744540178631,0.38941585,1614.5,1614.4,6.19425]
[1744540178943,13.16592,1614.8,1614.4,13.146]
[1744540179140,0.38932316,1614.7,1614.4,13.146]
[1744540180352,0.38932316,1614.7,1614.4,6.95175]
[1744540180661,6.58248316,1614.7,1614.4,6.95162]
[1744540180952,6.58248316,1614.7,1614.4,13.1457]
[1744540181157,6.58248316,1614.7,1614.4,6.95158]
[1744540181356,6.97408,1614.5,1614.3,0.148396]
[1744540181734,7.54915,1614.4,1614.3,0.148396]
[1744540181934,7.54915,1614.4,1614.1,0.02]